Workbook

Sheet 目录
B2: 部门预算公开表目录
B3: 序号 | C3: 名称 | D3: 备注
B4: 1 | C4: 2024年部门收支总体情况表
B5: 2 | C5: 2024年部门收入总体情况表
B6: 3 | C6: 2024年部门支出总体情况表
B7: 4 | C7: 2024年财政拨款收支总体情况表
B8: 5 | C8: 2024年一般公共预算支出情况表
B9: 6 | C9: 2024年一般公共预算基本支出情况表
B10: 7 | C10: 2024年一般公共预算“三公”经费预算表
B11: 8 | C11: 2024年政府性基金预算支出情况表
B12: 9 | C12: 2024年整体支出绩效目标表
B13: 10 | C13: 2024年项目支出绩效目标表

Sheet 1部门收支总体情况表
D1: 部门公开表01
A2: 2024年部门收支总体情况表
A3: 单位：404001_临湘市教育体育局（计财）、404002_临湘市教育体育局（机关）
D4: 单位：万元
A5: 收 入 | C5: 支 出
A6: 项 目 | B6: 预算数 | C6: 项 目 | D6: 预算数
A7: 一、一般公共预算财政拨款收入 | B7: =1679.842895+'[1]1部门收支总体情况表'!$B$7 -> 5,602.78 | C7: 一、[201]一般公共服务支出
A8: 经费拨款 | B8: =1529.842895+'[1]1部门收支总体情况表'!$B$8 -> 5,452.78 | C8: 二、[202]外交支出
A9: 纳入预算管理的非税收入拨款 | B9: 150.00 | C9: 三、[203]国防支出
A10: 二、财政专户管理资金收入 | C10: 四、[204]公共安全支出
A11: 三、政府性基金预算收入 | C11: 五、[205]教育支出 | D11: ='[1]1部门收支总体情况表'!$D$11+1351.54323 -> 5,274.48
A12: 四、事业单位经营服务收入 | C12: 六、[206]科学技术支出
A13: 五、上级补助收入 | C13: 七、[207]文化旅游体育与传媒支出
A14: 六、附属单位上缴收入 | C14: 八、[208]社会保障和就业支出 | D14: 152.47
A15: 七、其他收入 | C15: 九、[209]社会保险基金支出
C16: 十、[210]卫生健康支出 | D16: 70.33
C17: 十一、[211]节能环保支出
C18: 十二、[212]城乡社区支出
C19: 十三、[213]农林水支出
C20: 十四、[214]交通运输支出
C21: 十五、[215]资源勘探工业信息等支出
C22: 十六、[216]商业服务业等支出
C23: 十七、[217]金融支出
C24: 十八、[219]援助其他地区支出
C25: 十九、[220]自然资源海洋气象等支出
C26: 二十、[221]住房保障支出 | D26: 105.50
C27: 二十一、[222]粮油物资储备支出
C28: 二十二、[223]国有资本经营预算支出
C29: 二十三、[224]灾害防治及应急管理支出
C30: 二十四、[227]预备费
C31: 二十五、[229]其他支出
C32: 二十六、[230]转移性支出
C33: 二十七、[231]债务还本支出
C34: 二十八、[232]债务付息支出
C35: 二十九、[233]债务发行费用支出
C36: 三十、[234]抗疫特别国债安排的支出
A39: 本年收入合计 | B39: =1679.842895+'[1]1部门收支总体情况表'!$B$39 -> 5,602.78 | C39: 本年支出合计 | D39: =1679.842895+'[1]1部门收支总体情况表'!$D$39 -> 5,602.78
A40: 收入总计 | B40: =1679.842895+'[1]1部门收支总体情况表'!$B$40 -> 5,602.78 | C40: 支出总计 | D40: =1679.842895+'[1]1部门收支总体情况表'!$D$40 -> 5,602.78

Sheet 2部门收入总体情况表
K1: 部门公开表02
A2: 2024年部门收入总体情况表
A3: 单位：404001_临湘市教育体育局（计财）、404002_临湘市教育体育局（机关）
A4: 单位：万元
A5: 单位 | C5: 总计 | D5: 本年收入
A6: 编码 | B6: 名称 | D6: 合计 | E6: 一般公共预算财政拨款收入 | F6: 纳入一般公共预算管理的非税收入 | G6: 政府性基金预算收入 | H6: 事业单位经营服务收入 | I6: 上级补助收入 | J6: 附属单位上缴收入 | K6: 其他收入 | L6: 财政专户管理资金收入
A8: 总计： | C8: =1679.842895+'[1]2部门收入总体情况表'!$C$9 -> 5,602.78 | D8: =1679.842895+'[1]2部门收入总体情况表'!$D$9 -> 5,602.78 | E8: =1529.842895+'[1]2部门收入总体情况表'!$E$9 -> 5,452.78 | F8: 150.00
A9: 404001 | B9: 临湘市教育体育局（计财） | C9: 3,922.94 | D9: 3,922.94 | E9: 3,922.94
A10: 404002 | B10: 临湘市教育体育局（机关） | C10: 1,679.84 | D10: 1,679.84 | E10: 1,529.84 | F10: 150.00

Sheet 3部门支出总体情况表
H1: 部门公开表03
A2: 2024年部门支出总体情况表
A3: 单位：404001_临湘市教育体育局（计财）、404002_临湘市教育体育局（机关）
A4: 单位：万元
A5: 单位 | C5: 总计 | D5: 基本支出 | G5: 项目支出
A6: 编码 | B6: 名称 | D6: 合计 | E6: 人员类 | F6: 公用经费 | G6: 合计 | H6: 其他运转类 | I6: 特定目标类
A7: 总计: | C7: 5,602.78 | D7: 1,376.13 | E7: 1,255.53 | F7: 120.60 | G7: 303.72 | I7: 303.72
A8: 404001 | B8: 临湘市教育体育局（计财） | C8: 3,922.94 | G8: 3,922.94 | I8: 3,922.94
A9: 404002 | B9: 临湘市教育体育局（机关） | C9: 1,679.84 | D9: 1,376.13 | E9: 1,255.53 | F9: 120.60 | G9: 303.72 | I9: 303.72
A10: 205 | B10: 教育支出 | C10: =C11+C15+C21+C25+C23 -> 5,274.48 | D10: 1,047.83 | E10: 927.23 | F10: 120.60 | G10: 303.72 | I10: 303.72
A11: 20501 | B11: 教育管理事务 | C11: =SUM(C12:C14) -> 2,392.33 | D11: =SUM(D12:D14) -> 570.96 | E11: =SUM(E12:E14) -> 570.96 | F11: =SUM(F12:F14) -> 0.00 | G11: =SUM(G12:G14) -> 1,821.37 | I11: 241.00
A12: 2050101 | B12: 行政运行 | C12: 673.96 | D12: 570.96 | E12: 570.96 | G12: 103.00 | I12: 103.00
A13: 2050102 | B13: 一般行政管理事务 | C13: 169.00 | G13: 169.00
A14: 2050199 | B14: 其他教育管理事务支出 | C14: =138+'[1]3部门支出总体情况表'!$C$12 -> 1,549.37 | G14: =138+'[1]3部门支出总体情况表'!$G$12 -> 1,549.37 | I14: =138+'[1]3部门支出总体情况表'!$I$12 -> 1,549.37
A15: 20502 | B15: 普通教育 | C15: =SUM(C16:C20) -> 2,708.63 | D15: =SUM(D16:D20) -> 441.34 | E15: 320.74 | F15: 120.60 | G15: 2,267.29 | I15: 2,267.29
A16: 2050201 | B16: 学前教育 | C16: 277.00 | G16: 277.00 | I16: 277.00
A17: 2050202 | B17: 小学教育 | C17: 781.57 | G17: 781.57 | I17: 781.57
A18: 2050203 | B18: 初中教育 | C18: 555.00 | G18: 555.00 | I18: 555.00
A19: 2050204 | B19: 高中教育 | C19: 419.00 | G19: 419.00 | I19: 419.00
A20: 2050299 | B20: 其他普通教育支出 | C20: =479.059486+'[1]3部门支出总体情况表'!$C$18 -> 676.06 | D20: 441.34 | E20: 320.74 | F20: 120.60 | G20: =37.716586+'[1]3部门支出总体情况表'!$G$18 -> 234.72 | I20: =37.716586+'[1]3部门支出总体情况表'!$I$18 -> 234.72
A21: 20503 | B21: 职业教育 | C21: 113.00 | G21: 113.00 | I21: 113.00
A22: 2050302 | B22: 中等职业教育 | C22: 113.00 | G22: 113.00 | I22: 113.00
A23: 20504 | B23: 成人教育 | C23: 25.00 | G23: 25.00 | I23: 25.00
A24: 2050403 | B24: 成人高等教育 | C24: 25.00 | G24: 25.00 | I24: 25.00
A25: 20509 | B25: 教育费附加安排的支出 | C25: 35.52 | D25: 35.52 | E25: 35.52
A26: 2050999 | B26: 其他教育费附加安排的支出 | C26: 35.52 | D26: 35.52 | E26: 35.52
A27: 208 | B27: 社会保障和就业支出 | C27: 152.47 | D27: 152.47 | E27: 152.47
A28: 20805 | B28: 行政事业单位养老支出 | C28: 143.44 | D28: 143.44 | E28: 143.44
A29: 2080505 | B29: 机关事业单位基本养老保险缴费支出 | C29: 140.67 | D29: 140.67 | E29: 140.67
A30: 2080506 | B30: 机关事业单位职业年金缴费支出 | C30: 2.77 | D30: 2.77 | E30: 2.77
A31: 20808 | B31: 抚恤 | C31: 0.83 | D31: 0.83 | E31: 0.83
A32: 2080801 | B32: 死亡抚恤 | C32: 0.83 | D32: 0.83 | E32: 0.83
A33: 20899 | B33: 其他社会保障和就业支出 | C33: 8.20 | D33: 8.20 | E33: 8.20
A34: 2089999 | B34: 其他社会保障和就业支出 | C34: 8.20 | D34: 8.20 | E34: 8.20
A35: 210 | B35: 卫生健康支出 | C35: 70.33 | D35: 70.33 | E35: 70.33
A36: 21011 | B36: 行政事业单位医疗 | C36: 70.33 | D36: 70.33 | E36: 70.33
A37: 2101102 | B37: 事业单位医疗 | C37: 70.33 | D37: 70.33 | E37: 70.33
A38: 221 | B38: 住房保障支出 | C38: 105.50 | D38: 105.50 | E38: 105.50
A39: 22102 | B39: 住房改革支出 | C39: 105.50 | D39: 105.50 | E39: 105.50
A40: 2210201 | B40: 住房公积金 | C40: 105.50 | D40: 105.50 | E40: 105.50

Sheet 4财政拨款收支总体情况表
D1: 部门公开表04
A2: 2024年财政拨款收支总体情况表
A3: 单位：404001_临湘市教育体育局（计财）、404002_临湘市教育体育局（机关）
A4: 单位：万元
A5: 收 入 | C5: 支 出
A6: 项目 | B6: 预算数 | C6: 项目 | D6: 预算数
A7: 一、本年收入 | B7: =B8 -> 5,602.78 | C7: 一、本年支出 | D7: =SUM(D8:D37) -> 5,602.78
A8: （一）一般公共预算拨款 | B8: =B10+B9 -> 5,602.78 | C8: 一、[201]一般公共服务支出
A9: 1.财政补助收入 | B9: =1529.842895+'[1]4财政拨款收支总体情况表'!$B$9 -> 5,452.78 | C9: 二、[202]外交支出
A10: 2.纳入一般公共预算管理的非税收入 | B10: 150.00 | C10: 三、[203]国防支出
A11: 3.上级补助收入 | C11: 四、[204]公共安全支出
A12: 4.上年结转 | C12: 五、[205]教育支出 | D12: =1351.54323+'[1]4财政拨款收支总体情况表'!$D$12 -> 5,274.48
A13: 5.体制分成 | C13: 六、[206]科学技术支出
A14: （二）政府性基金预算拨款 | C14: 七、[207]文化旅游体育与传媒支出
C15: 八、[208]社会保障和就业支出 | D15: 152.47
C16: 九、[209]社会保险基金支出
C17: 十、[210]卫生健康支出 | D17: 70.33
C18: 十一、[211]节能环保支出
C19: 十二、[212]城乡社区支出
C20: 十三、[213]农林水支出
C21: 十四、[214]交通运输支出
C22: 十五、[215]资源勘探工业信息等支出
C23: 十六、[216]商业服务业等支出
C24: 十七、[217]金融支出
C25: 十八、[219]援助其他地区支出
C26: 十九、[220]自然资源海洋气象等支出
C27: 二十、[221]住房保障支出 | D27: 105.50
C28: 二十一、[222]粮油物资储备支出
C29: 二十二、[223]国有资本经营预算支出
C30: 二十三、[224]灾害防治及应急管理支出
C31: 二十四、[227]预备费
C32: 二十五、[229]其他支出
C33: 二十六、[230]转移性支出
C34: 二十七、[231]债务还本支出
C35: 二十八、[232]债务付息支出
C36: 二十九、[233]债务发行费用支出
C37: 三十、[234]抗疫特别国债安排的支出
C40: 二、结转下年
A42: 收入总计 | B42: =1679.842895+'[1]4财政拨款收支总体情况表'!$B$42 -> 5,602.78 | C42: 支出总计 | D42: =1679.842895+'[1]4财政拨款收支总体情况表'!$D$42 -> 5,602.78
A44: 注：如本表格为空，则表示本年度未安排此项目

Sheet 5一般公共预算支出情况表
G1: 部门公开表05
A2: 2024年一般公共预算支出情况表
A3: 单位：404001_临湘市教育体育局（计财）、404002_临湘市教育体育局（机关）
A4: 单位：万元
A5: 科目编码 | B5: 科目名称 | C5: 合计 | D5: 基本支出 | G5: 项目支出
D6: 小计 | E6: 人员经费 | F6: 公用经费
A7: 总计： | C7: =C8+C25+C33+C36 -> 5,602.78 | D7: =D8+D25+D33+D36 -> 1,376.13 | E7: =E8+E25+E33+E36 -> 1,255.53 | F7: =F8+F25+F33+F36 -> 120.60 | G7: =G8+G25+G33+G36 -> 4,226.66
A8: 205 | B8: 教育支出 | C8: =C9+C13+C19+C23+C21 -> 5,274.48 | D8: =D9+D13+D19+D23+D21 -> 1,047.83 | E8: =E9+E13+E19+E23+E21 -> 927.23 | F8: =F9+F13+F19+F23+F21 -> 120.60 | G8: =G9+G13+G19+G23+G21 -> 4,226.66
A9: 20501 | B9: 教育管理事务 | C9: =SUM(C10:C12) -> 2,392.33 | D9: 570.96 | E9: 570.96 | F9: 0.00 | G9: 1,821.37
A10: 2050101 | B10: 行政运行 | C10: 673.96 | D10: 570.96 | E10: 570.96 | G10: 103.00
A11: 2050102 | B11: 一般行政管理事务 | C11: 169.00 | G11: 169.00
A12: 2050199 | B12: 其他教育管理事务支出 | C12: =138+'[1]3部门支出总体情况表'!$C$12 -> 1,549.37 | G12: =138+'[1]3部门支出总体情况表'!$G$12 -> 1,549.37
A13: 20502 | B13: 普通教育 | C13: =SUM(C14:C18) -> 2,708.63 | D13: 441.34 | E13: 320.74 | F13: 120.60 | G13: 2,267.29
A14: 2050201 | B14: 学前教育 | C14: 277.00 | G14: 277.00
A15: 2050202 | B15: 小学教育 | C15: 781.57 | G15: 781.57
A16: 2050203 | B16: 初中教育 | C16: 555.00 | G16: 555.00
A17: 2050204 | B17: 高中教育 | C17: 419.00 | G17: 419.00
A18: 2050299 | B18: 其他普通教育支出 | C18: =479.059486+'[1]3部门支出总体情况表'!$C$18 -> 676.06 | D18: 441.34 | E18: 320.74 | F18: 120.60 | G18: =37.716586+'[1]3部门支出总体情况表'!$G$18 -> 234.72
A19: 20503 | B19: 职业教育 | C19: 113.00 | G19: 113.00
A20: 2050302 | B20: 中等职业教育 | C20: 113.00 | G20: 113.00
A21: 20504 | B21: 成人教育 | C21: 25.00 | G21: 25.00
A22: 2050403 | B22: 成人高等教育 | C22: 25.00 | G22: 25.00
A23: 20509 | B23: 教育费附加安排的支出 | C23: 35.52 | D23: 35.52 | E23: 35.52
A24: 2050999 | B24: 其他教育费附加安排的支出 | C24: 35.52 | D24: 35.52 | E24: 35.52
A25: 208 | B25: 社会保障和就业支出 | C25: 152.47 | D25: 152.47 | E25: 152.47
A26: 20805 | B26: 行政事业单位养老支出 | C26: 143.44 | D26: 143.44 | E26: 143.44
A27: 2080505 | B27: 机关事业单位基本养老保险缴费支出 | C27: 140.67 | D27: 140.67 | E27: 140.67
A28: 2080506 | B28: 机关事业单位职业年金缴费支出 | C28: 2.77 | D28: 2.77 | E28: 2.77
A29: 20808 | B29: 抚恤 | C29: 0.83 | D29: 0.83 | E29: 0.83
A30: 2080801 | B30: 死亡抚恤 | C30: 0.83 | D30: 0.83 | E30: 0.83
A31: 20899 | B31: 其他社会保障和就业支出 | C31: 8.20 | D31: 8.20 | E31: 8.20
A32: 2089999 | B32: 其他社会保障和就业支出 | C32: 8.20 | D32: 8.20 | E32: 8.20
A33: 210 | B33: 卫生健康支出 | C33: 70.33 | D33: 70.33 | E33: 70.33
A34: 21011 | B34: 行政事业单位医疗 | C34: 70.33 | D34: 70.33 | E34: 70.33
A35: 2101102 | B35: 事业单位医疗 | C35: 70.33 | D35: 70.33 | E35: 70.33
A36: 221 | B36: 住房保障支出 | C36: 105.50 | D36: 105.50 | E36: 105.50
A37: 22102 | B37: 住房改革支出 | C37: 105.50 | D37: 105.50 | E37: 105.50
A38: 2210201 | B38: 住房公积金 | C38: 105.50 | D38: 105.50 | E38: 105.50

Sheet 6一般公共预算基本支出情况表
E1: 部门公开表06
A2: 2024年一般公共预算基本支出情况表
A3: 单位：404001_临湘市教育体育局（计财）、404002_临湘市教育体育局（机关）
A4: 单位：万元
A5: 部门预算支出经济分类科目 | C5: 本年一般公共预算基本支出
A6: 科目编码 | B6: 科目名称 | C6: 合计 | D6: 人员经费 | E6: 公用经费
A7: 总 计 | C7: 1,376.13 | D7: 1,255.53 | E7: 120.60
A8: 301 | B8: 工资福利支出 | C8: 1,254.70 | D8: 1,254.70
A9: 30101 | B9: 基本工资 | C9: 592.08 | D9: 592.08
A10: 30107 | B10: 绩效工资 | C10: 238.71 | D10: 238.71
A11: 30102 | B11: 津贴补贴 | C11: 53.53 | D11: 53.53
A12: 30103 | B12: 奖金 | C12: 7.38 | D12: 7.38
A13: 30199 | B13: 其他工资福利支出 | C13: 35.52 | D13: 35.52
A14: 30108 | B14: 机关事业单位基本养老保险缴费 | C14: 140.67 | D14: 140.67
A15: 30109 | B15: 职业年金缴费 | C15: 2.77 | D15: 2.77
A16: 30112 | B16: 其他社会保障缴费 | C16: 8.20 | D16: 8.20
A17: 30110 | B17: 职工基本医疗保险缴费 | C17: 70.33 | D17: 70.33
A18: 30113 | B18: 住房公积金 | C18: 105.50 | D18: 105.50
A19: 303 | B19: 对个人和家庭的补助 | C19: 0.83 | D19: 0.83
A20: 30304 | B20: 抚恤金 | C20: 0.83 | D20: 0.83
A21: 302 | B21: 商品和服务支出 | C21: 120.60 | E21: 120.60
A22: 30299 | B22: 其他商品和服务支出 | C22: 25.40 | E22: 25.40
A23: 30213 | B23: 维修（护）费 | C23: 9.10 | E23: 9.10
A24: 30215 | B24: 会议费 | C24: 2.50 | E24: 2.50
A25: 30216 | B25: 培训费 | C25: 2.30 | E25: 2.30
A26: 30217 | B26: 公务接待费 | C26: 6.00 | E26: 6.00
A27: 30211 | B27: 差旅费 | C27: 21.00 | E27: 21.00
A28: 30228 | B28: 工会经费 | C28: 2.00 | E28: 2.00
A29: 30226 | B29: 劳务费 | C29: 2.00 | E29: 2.00
A30: 30201 | B30: 办公费 | C30: 14.50 | E30: 14.50
A31: 30202 | B31: 印刷费 | C31: 21.00 | E31: 21.00
A32: 30205 | B32: 水费 | C32: 2.00 | E32: 2.00
A33: 30206 | B33: 电费 | C33: 11.00 | E33: 11.00
A34: 30207 | B34: 邮电费 | C34: 1.80 | E34: 1.80
A35: 注：如本表格为空，则表示本年度未安排此项目

Sheet 7一般公共预算“三公”经费预算表
H1: 部门公开表07
A2: 2024年一般公共预算“三公”经费预算表
A3: 单位：404001_临湘市教育体育局（计财）、404002_临湘市教育体育局（机关）
C4: 单位：万元
A5: 单位 | C5: 三公经费
A6: 单位编码 | B6: 单位名称 | C6: “三公”经费合计 | D6: 因公出国（境）费 | E6: 公务用车购置及运行费 | H6: 公务接待费
E7: 小计 | F7: 公务用车购置费 | G7: 公务用车运行费
A8: 总计： | C8: 6.00 | H8: 6.00
A9: 404_临湘市教育体育局（计财） | C9: 6.00 | H9: 6.00
A10: 404002 | B10: 临湘市教育体育局（机关） | C10: 6.00 | H10: 6.00
A11: 注：如本表格为空，则表示本年度未安排此项目

Sheet 8政府性基金预算支出情况表
E1: 部门公开表08
A2: 2024年政府性基金预算支出情况表
A3: 单位：404001_临湘市教育体育局（计财）、404002_临湘市教育体育局（机关）
A4: 单位：万元
A5: 科目编码 | B5: 科目名称 | C5: 本年政府性基金预算支出
C6: 合计 | D6: 基本支出 | E6: 项目支出
A7: 总 计： | C7: 0.00
A11: 注：如本表格为空，则表示本年度未安排此项目

Sheet 9整体支出绩效目标表
R1: 部门公开表09
A2: 2024年整体支出绩效目标表
A3: 单位：404001_临湘市教育体育局（计财）、404002_临湘市教育体育局（机关）
Q4: 金额单位：万元
A5: 单位编码 | B5: 单位名称 | C5: 年度预算申请 | J5: 整体绩效目标 | K5: 部门整体支出年度绩效目标
C6: 资金总额 | D6: 按收入性质分 | H6: 按支出性质分
D7: 一般公共预算 | E7: 政府性基金拨款 | F7: 财政专户管理资金 | G7: 其他资金 | H7: 基本支出 | I7: 项目支出 | K7: 一级指标 | L7: 二级指标 | M7: 三级指标 | N7: 指标值类型 | O7: 指标值 | P7: 计量单位 | Q7: 指标解释 | R7: 评（扣）分标准 | S7: 备注
A8: 404001 | B8: 临湘市教育体育局（计财） | C8: 3,922.94 | D8: 3,922.94 | I8: 3,922.94 | J8: 1.进一步促进义务教育均衡发展，改善学校办学条件，确保教育公平； 2.做好各项活动经费保障，保障教育事业运行，保障各项活动顺利进行； 3.促进各类教育协调发展，落实教育改革方案，提高教师队伍业务素质水平； 4.做好贫困师生补助，保障师生的学习环境安全，交通安全等安全； 5.整体满意度达到95%以上 | K8: 产出指标 | L8: 数量指标 | N8: ≥ | O8: 100 | P8: % | Q8: 资金使用率 | R8: 未达指标酌情扣分
Q9: 经费足额拨付，改善学校办学条件 | R9: 未达指标酌情扣分
Q10: 公用经费足额拨付，保证学校正常开展各项业务 | R10: 未达指标酌情扣分
Q11: 各项活动经费足额拨付，保证活动顺利进行 | R11: 未达指标酌情扣分
O12: 95 | P12: % | Q12: 保障学校开展各项业务 | R12: 未达指标酌情扣分
Q13: 社会满意度 | R13: 未达指标酌情扣分
N14: ≤ | O14: 12 | P14: 月 | Q14: 资金拨付及时性 | R14: 未达指标酌情扣分
N15: 定性 | O15: 有所提高 | P15: 无 | Q15: 逐步提升社会地位 | R15: 未达指标酌情扣分
Q16: 学校教学质量提高 | R16: 未达指标酌情扣分
O17: 不适用 | P17: 不适用 | Q17: 不适用 | R17: 不适用
L18: 质量指标 | N18: ≥ | O18: 100 | P18: % | Q18: 资金使用率 | R18: 未达指标酌情扣分
Q19: 经费足额拨付，改善学校办学条件 | R19: 未达指标酌情扣分
Q20: 公用经费足额拨付，保证学校正常开展各项业务 | R20: 未达指标酌情扣分
Q21: 各项活动经费足额拨付，保证活动顺利进行 | R21: 未达指标酌情扣分
O22: 95 | P22: % | Q22: 保障学校开展各项业务 | R22: 未达指标酌情扣分
Q23: 社会满意度 | R23: 未达指标酌情扣分
N24: ≤ | O24: 12 | P24: 月 | Q24: 资金拨付及时性 | R24: 未达指标酌情扣分
N25: 定性 | O25: 有所提高 | P25: 无 | Q25: 逐步提升社会地位 | R25: 未达指标酌情扣分
Q26: 学校教学质量提高 | R26: 未达指标酌情扣分
O27: 不适用 | P27: 不适用 | Q27: 不适用 | R27: 不适用
L28: 时效指标 | N28: ≥ | O28: 100 | P28: % | Q28: 资金使用率 | R28: 未达指标酌情扣分
Q29: 经费足额拨付，改善学校办学条件 | R29: 未达指标酌情扣分
Q30: 公用经费足额拨付，保证学校正常开展各项业务 | R30: 未达指标酌情扣分
Q31: 各项活动经费足额拨付，保证活动顺利进行 | R31: 未达指标酌情扣分
O32: 95 | P32: % | Q32: 保障学校开展各项业务 | R32: 未达指标酌情扣分
Q33: 社会满意度 | R33: 未达指标酌情扣分
N34: ≤ | O34: 12 | P34: 月 | Q34: 资金拨付及时性 | R34: 未达指标酌情扣分
N35: 定性 | O35: 有所提高 | P35: 无 | Q35: 逐步提升社会地位 | R35: 未达指标酌情扣分
Q36: 学校教学质量提高 | R36: 未达指标酌情扣分
O37: 不适用 | P37: 不适用 | Q37: 不适用 | R37: 不适用
L38: 成本指标 | N38: ≥ | O38: 100 | P38: % | Q38: 资金使用率 | R38: 未达指标酌情扣分
Q39: 经费足额拨付，改善学校办学条件 | R39: 未达指标酌情扣分
Q40: 公用经费足额拨付，保证学校正常开展各项业务 | R40: 未达指标酌情扣分
Q41: 各项活动经费足额拨付，保证活动顺利进行 | R41: 未达指标酌情扣分
O42: 95 | P42: % | Q42: 保障学校开展各项业务 | R42: 未达指标酌情扣分
Q43: 社会满意度 | R43: 未达指标酌情扣分
N44: ≤ | O44: 12 | P44: 月 | Q44: 资金拨付及时性 | R44: 未达指标酌情扣分
N45: 定性 | O45: 有所提高 | P45: 无 | Q45: 逐步提升社会地位 | R45: 未达指标酌情扣分
Q46: 学校教学质量提高 | R46: 未达指标酌情扣分
O47: 不适用 | P47: 不适用 | Q47: 不适用 | R47: 不适用
K48: 效益指标 | L48: 经济效益指标 | N48: ≥ | O48: 100 | P48: % | Q48: 资金使用率 | R48: 未达指标酌情扣分
Q49: 经费足额拨付，改善学校办学条件 | R49: 未达指标酌情扣分
Q50: 公用经费足额拨付，保证学校正常开展各项业务 | R50: 未达指标酌情扣分
Q51: 各项活动经费足额拨付，保证活动顺利进行 | R51: 未达指标酌情扣分
O52: 95 | P52: % | Q52: 保障学校开展各项业务 | R52: 未达指标酌情扣分
Q53: 社会满意度 | R53: 未达指标酌情扣分
N54: ≤ | O54: 12 | P54: 月 | Q54: 资金拨付及时性 | R54: 未达指标酌情扣分
N55: 定性 | O55: 有所提高 | P55: 无 | Q55: 逐步提升社会地位 | R55: 未达指标酌情扣分
Q56: 学校教学质量提高 | R56: 未达指标酌情扣分
O57: 不适用 | P57: 不适用 | Q57: 不适用 | R57: 不适用
L58: 社会效益指标 | N58: ≥ | O58: 100 | P58: % | Q58: 资金使用率 | R58: 未达指标酌情扣分
Q59: 经费足额拨付，改善学校办学条件 | R59: 未达指标酌情扣分
Q60: 公用经费足额拨付，保证学校正常开展各项业务 | R60: 未达指标酌情扣分
Q61: 各项活动经费足额拨付，保证活动顺利进行 | R61: 未达指标酌情扣分
O62: 95 | P62: % | Q62: 保障学校开展各项业务 | R62: 未达指标酌情扣分
Q63: 社会满意度 | R63: 未达指标酌情扣分
N64: ≤ | O64: 12 | P64: 月 | Q64: 资金拨付及时性 | R64: 未达指标酌情扣分
N65: 定性 | O65: 有所提高 | P65: 无 | Q65: 逐步提升社会地位 | R65: 未达指标酌情扣分
Q66: 学校教学质量提高 | R66: 未达指标酌情扣分
O67: 不适用 | P67: 不适用 | Q67: 不适用 | R67: 不适用
L68: 生态效益指标 | N68: ≥ | O68: 100 | P68: % | Q68: 资金使用率 | R68: 未达指标酌情扣分
Q69: 经费足额拨付，改善学校办学条件 | R69: 未达指标酌情扣分
Q70: 公用经费足额拨付，保证学校正常开展各项业务 | R70: 未达指标酌情扣分
Q71: 各项活动经费足额拨付，保证活动顺利进行 | R71: 未达指标酌情扣分
O72: 95 | P72: % | Q72: 保障学校开展各项业务 | R72: 未达指标酌情扣分
Q73: 社会满意度 | R73: 未达指标酌情扣分
N74: ≤ | O74: 12 | P74: 月 | Q74: 资金拨付及时性 | R74: 未达指标酌情扣分
N75: 定性 | O75: 有所提高 | P75: 无 | Q75: 逐步提升社会地位 | R75: 未达指标酌情扣分
Q76: 学校教学质量提高 | R76: 未达指标酌情扣分
O77: 不适用 | P77: 不适用 | Q77: 不适用 | R77: 不适用
L78: 可持续影响指标 | N78: ≥ | O78: 100 | P78: % | Q78: 资金使用率 | R78: 未达指标酌情扣分
Q79: 经费足额拨付，改善学校办学条件 | R79: 未达指标酌情扣分
Q80: 公用经费足额拨付，保证学校正常开展各项业务 | R80: 未达指标酌情扣分
Q81: 各项活动经费足额拨付，保证活动顺利进行 | R81: 未达指标酌情扣分
O82: 95 | P82: % | Q82: 保障学校开展各项业务 | R82: 未达指标酌情扣分
Q83: 社会满意度 | R83: 未达指标酌情扣分
N84: ≤ | O84: 12 | P84: 月 | Q84: 资金拨付及时性 | R84: 未达指标酌情扣分
N85: 定性 | O85: 有所提高 | P85: 无 | Q85: 逐步提升社会地位 | R85: 未达指标酌情扣分
Q86: 学校教学质量提高 | R86: 未达指标酌情扣分
O87: 不适用 | P87: 不适用 | Q87: 不适用 | R87: 不适用
K88: 满意度指标 | L88: 服务对象满意度指标 | N88: ≥ | O88: 100 | P88: % | Q88: 资金使用率 | R88: 未达指标酌情扣分
Q89: 经费足额拨付，改善学校办学条件 | R89: 未达指标酌情扣分
Q90: 公用经费足额拨付，保证学校正常开展各项业务 | R90: 未达指标酌情扣分
Q91: 各项活动经费足额拨付，保证活动顺利进行 | R91: 未达指标酌情扣分
O92: 95 | P92: % | Q92: 保障学校开展各项业务 | R92: 未达指标酌情扣分
Q93: 社会满意度 | R93: 未达指标酌情扣分
N94: ≤ | O94: 12 | P94: 月 | Q94: 资金拨付及时性 | R94: 未达指标酌情扣分
N95: 定性 | O95: 有所提高 | P95: 无 | Q95: 逐步提升社会地位 | R95: 未达指标酌情扣分
Q96: 学校教学质量提高 | R96: 未达指标酌情扣分
O97: 不适用 | P97: 不适用 | Q97: 不适用 | R97: 不适用
A98: 404002 | B98: 临湘市教育体育局（机关） | C98: 1,679.84 | D98: 1,679.84 | H98: 1,376.13 | I98: 303.72 | J98: 目标1：进一步促进义务教育均衡发展，确保教育公平； 目标2：促进各类教育协调发展，落实教育改革方案，提高整体教育教学质量； 目标3：做好寄宿生生活补助工作，提高寄宿生生活质量； 目标4：加大教师培训力度，提升教师业务素质。 | K98: 产出指标 | L98: 数量指标 | N98: = | O98: 100 | P98: % | Q98: 资金使用率达100% | R98: 未达指标值酌情扣分
Q99: 控制在预算范围内 | R99: 未达指标值酌情扣分
N100: > | O100: 90 | P100: % | Q100: 90%以上的教师参加继续教育 | R100: 未达指标值酌情扣分
O101: 10 | P101: 个 | Q101: 全年完成10个以上学校的校园建设 | R101: 未达指标值酌情扣分
O102: 95 | P102: % | Q102: 寄宿生生活补助覆盖率达95%以上 | R102: 未达指标值酌情扣分
N103: < | O103: 1 | P103: 月 | Q103: 资金拨付控制在一个月内 | R103: 未达指标值酌情扣分
N104: 定性 | O104: 改善 | P104: 无 | Q104: 校园环境得到改善 | R104: 未达指标值酌情扣分
O105: 提高 | P105: 无 | Q105: 学校教学质量较上年提高 | R105: 未达指标值酌情扣分
O106: 绝大多数 | P106: 无 | Q106: 绝大多数群众满意 | R106: 未达指标值酌情扣分
O107: 无 | P107: 无 | Q107: 无负面影响 | R107: 未达指标值酌情扣分
L108: 质量指标 | N108: = | O108: 100 | P108: % | Q108: 资金使用率达100% | R108: 未达指标值酌情扣分
Q109: 控制在预算范围内 | R109: 未达指标值酌情扣分
N110: > | O110: 90 | P110: % | Q110: 90%以上的教师参加继续教育 | R110: 未达指标值酌情扣分
O111: 10 | P111: 个 | Q111: 全年完成10个以上学校的校园建设 | R111: 未达指标值酌情扣分
O112: 95 | P112: % | Q112: 寄宿生生活补助覆盖率达95%以上 | R112: 未达指标值酌情扣分
N113: < | O113: 1 | P113: 月 | Q113: 资金拨付控制在一个月内 | R113: 未达指标值酌情扣分
N114: 定性 | O114: 改善 | P114: 无 | Q114: 校园环境得到改善 | R114: 未达指标值酌情扣分
O115: 提高 | P115: 无 | Q115: 学校教学质量较上年提高 | R115: 未达指标值酌情扣分
O116: 绝大多数 | P116: 无 | Q116: 绝大多数群众满意 | R116: 未达指标值酌情扣分
O117: 无 | P117: 无 | Q117: 无负面影响 | R117: 未达指标值酌情扣分
L118: 时效指标 | N118: = | O118: 100 | P118: % | Q118: 资金使用率达100% | R118: 未达指标值酌情扣分
Q119: 控制在预算范围内 | R119: 未达指标值酌情扣分
N120: > | O120: 90 | P120: % | Q120: 90%以上的教师参加继续教育 | R120: 未达指标值酌情扣分
O121: 10 | P121: 个 | Q121: 全年完成10个以上学校的校园建设 | R121: 未达指标值酌情扣分
O122: 95 | P122: % | Q122: 寄宿生生活补助覆盖率达95%以上 | R122: 未达指标值酌情扣分
N123: < | O123: 1 | P123: 月 | Q123: 资金拨付控制在一个月内 | R123: 未达指标值酌情扣分
N124: 定性 | O124: 改善 | P124: 无 | Q124: 校园环境得到改善 | R124: 未达指标值酌情扣分
O125: 提高 | P125: 无 | Q125: 学校教学质量较上年提高 | R125: 未达指标值酌情扣分
O126: 绝大多数 | P126: 无 | Q126: 绝大多数群众满意 | R126: 未达指标值酌情扣分
O127: 无 | P127: 无 | Q127: 无负面影响 | R127: 未达指标值酌情扣分
L128: 成本指标 | N128: = | O128: 100 | P128: % | Q128: 资金使用率达100% | R128: 未达指标值酌情扣分
Q129: 控制在预算范围内 | R129: 未达指标值酌情扣分
N130: > | O130: 90 | P130: % | Q130: 90%以上的教师参加继续教育 | R130: 未达指标值酌情扣分
O131: 10 | P131: 个 | Q131: 全年完成10个以上学校的校园建设 | R131: 未达指标值酌情扣分
O132: 95 | P132: % | Q132: 寄宿生生活补助覆盖率达95%以上 | R132: 未达指标值酌情扣分
N133: < | O133: 1 | P133: 月 | Q133: 资金拨付控制在一个月内 | R133: 未达指标值酌情扣分
N134: 定性 | O134: 改善 | P134: 无 | Q134: 校园环境得到改善 | R134: 未达指标值酌情扣分
O135: 提高 | P135: 无 | Q135: 学校教学质量较上年提高 | R135: 未达指标值酌情扣分
O136: 绝大多数 | P136: 无 | Q136: 绝大多数群众满意 | R136: 未达指标值酌情扣分
O137: 无 | P137: 无 | Q137: 无负面影响 | R137: 未达指标值酌情扣分
K138: 效益指标 | L138: 经济效益指标 | N138: = | O138: 100 | P138: % | Q138: 资金使用率达100% | R138: 未达指标值酌情扣分
Q139: 控制在预算范围内 | R139: 未达指标值酌情扣分
N140: > | O140: 90 | P140: % | Q140: 90%以上的教师参加继续教育 | R140: 未达指标值酌情扣分
O141: 10 | P141: 个 | Q141: 全年完成10个以上学校的校园建设 | R141: 未达指标值酌情扣分
O142: 95 | P142: % | Q142: 寄宿生生活补助覆盖率达95%以上 | R142: 未达指标值酌情扣分
N143: < | O143: 1 | P143: 月 | Q143: 资金拨付控制在一个月内 | R143: 未达指标值酌情扣分
N144: 定性 | O144: 改善 | P144: 无 | Q144: 校园环境得到改善 | R144: 未达指标值酌情扣分
O145: 提高 | P145: 无 | Q145: 学校教学质量较上年提高 | R145: 未达指标值酌情扣分
O146: 绝大多数 | P146: 无 | Q146: 绝大多数群众满意 | R146: 未达指标值酌情扣分
O147: 无 | P147: 无 | Q147: 无负面影响 | R147: 未达指标值酌情扣分
L148: 社会效益指标 | N148: = | O148: 100 | P148: % | Q148: 资金使用率达100% | R148: 未达指标值酌情扣分
Q149: 控制在预算范围内 | R149: 未达指标值酌情扣分
N150: > | O150: 90 | P150: % | Q150: 90%以上的教师参加继续教育 | R150: 未达指标值酌情扣分
O151: 10 | P151: 个 | Q151: 全年完成10个以上学校的校园建设 | R151: 未达指标值酌情扣分
O152: 95 | P152: % | Q152: 寄宿生生活补助覆盖率达95%以上 | R152: 未达指标值酌情扣分
N153: < | O153: 1 | P153: 月 | Q153: 资金拨付控制在一个月内 | R153: 未达指标值酌情扣分
N154: 定性 | O154: 改善 | P154: 无 | Q154: 校园环境得到改善 | R154: 未达指标值酌情扣分
O155: 提高 | P155: 无 | Q155: 学校教学质量较上年提高 | R155: 未达指标值酌情扣分
O156: 绝大多数 | P156: 无 | Q156: 绝大多数群众满意 | R156: 未达指标值酌情扣分
O157: 无 | P157: 无 | Q157: 无负面影响 | R157: 未达指标值酌情扣分
L158: 生态效益指标 | N158: = | O158: 100 | P158: % | Q158: 资金使用率达100% | R158: 未达指标值酌情扣分
Q159: 控制在预算范围内 | R159: 未达指标值酌情扣分
N160: > | O160: 90 | P160: % | Q160: 90%以上的教师参加继续教育 | R160: 未达指标值酌情扣分
O161: 10 | P161: 个 | Q161: 全年完成10个以上学校的校园建设 | R161: 未达指标值酌情扣分
O162: 95 | P162: % | Q162: 寄宿生生活补助覆盖率达95%以上 | R162: 未达指标值酌情扣分
N163: < | O163: 1 | P163: 月 | Q163: 资金拨付控制在一个月内 | R163: 未达指标值酌情扣分
N164: 定性 | O164: 改善 | P164: 无 | Q164: 校园环境得到改善 | R164: 未达指标值酌情扣分
O165: 提高 | P165: 无 | Q165: 学校教学质量较上年提高 | R165: 未达指标值酌情扣分
O166: 绝大多数 | P166: 无 | Q166: 绝大多数群众满意 | R166: 未达指标值酌情扣分
O167: 无 | P167: 无 | Q167: 无负面影响 | R167: 未达指标值酌情扣分
L168: 可持续影响指标 | N168: = | O168: 100 | P168: % | Q168: 资金使用率达100% | R168: 未达指标值酌情扣分
Q169: 控制在预算范围内 | R169: 未达指标值酌情扣分
N170: > | O170: 90 | P170: % | Q170: 90%以上的教师参加继续教育 | R170: 未达指标值酌情扣分
O171: 10 | P171: 个 | Q171: 全年完成10个以上学校的校园建设 | R171: 未达指标值酌情扣分
O172: 95 | P172: % | Q172: 寄宿生生活补助覆盖率达95%以上 | R172: 未达指标值酌情扣分
N173: < | O173: 1 | P173: 月 | Q173: 资金拨付控制在一个月内 | R173: 未达指标值酌情扣分
N174: 定性 | O174: 改善 | P174: 无 | Q174: 校园环境得到改善 | R174: 未达指标值酌情扣分
O175: 提高 | P175: 无 | Q175: 学校教学质量较上年提高 | R175: 未达指标值酌情扣分
O176: 绝大多数 | P176: 无 | Q176: 绝大多数群众满意 | R176: 未达指标值酌情扣分
O177: 无 | P177: 无 | Q177: 无负面影响 | R177: 未达指标值酌情扣分
K178: 满意度指标 | L178: 服务对象满意度指标 | N178: = | O178: 100 | P178: % | Q178: 资金使用率达100% | R178: 未达指标值酌情扣分
Q179: 控制在预算范围内 | R179: 未达指标值酌情扣分
N180: > | O180: 90 | P180: % | Q180: 90%以上的教师参加继续教育 | R180: 未达指标值酌情扣分
O181: 10 | P181: 个 | Q181: 全年完成10个以上学校的校园建设 | R181: 未达指标值酌情扣分
O182: 95 | P182: % | Q182: 寄宿生生活补助覆盖率达95%以上 | R182: 未达指标值酌情扣分
N183: < | O183: 1 | P183: 月 | Q183: 资金拨付控制在一个月内 | R183: 未达指标值酌情扣分
N184: 定性 | O184: 改善 | P184: 无 | Q184: 校园环境得到改善 | R184: 未达指标值酌情扣分
O185: 提高 | P185: 无 | Q185: 学校教学质量较上年提高 | R185: 未达指标值酌情扣分
O186: 绝大多数 | P186: 无 | Q186: 绝大多数群众满意 | R186: 未达指标值酌情扣分
O187: 无 | P187: 无 | Q187: 无负面影响 | R187: 未达指标值酌情扣分
A188: 注：如本表格为空，则表示本年度未安排此项目

Sheet 10项目支出绩效目标表
N1: 部门公开表10
C2: 2024年项目支出绩效目标表
A3: 单位：404001_临湘市教育体育局（计财）、404002_临湘市教育体育局（机关）
M4: 金额单位：万元
A5: 单位代码 | B5: 单位（专项）名称 | C5: 支出方向 | D5: 资金总额 | E5: 实施期绩效目标 | F5: 绩效指标
F6: 一级指标 | G6: 二级指标 | H6: 三级指标 | I6: 指标值 | J6: 指标值内容 | K6: 评（扣分标准） | L6: 度量单位 | M6: 指标值类型 | N6: 备注
C7: 合计 | D7: =D8+D240 -> 4,226.66
A8: 404001 | B8: 临湘市教育体育局（计财） | D8: 3,922.94
A9: 404001 | B9: 城乡初中教育生均公用经费 | D9: 500.00 | E9: 教育保障机制配套资金，保障教育事业运行 | F9: 成本指标 | G9: 生态环境成本指标 | H9: 对自然生态环境造成的负面影响 | I9: 0% | J9: 无负面影响 | K9: 未达指标酌情扣分 | L9: % | M9: 定量
G10: 社会成本指标 | H10: 对社会发展可能造成的负面影响 | I10: 0% | J10: 无负面影响 | K10: 未达指标酌情扣分 | L10: % | M10: 定量
G11: 经济成本指标 | H11: 控制在预算范围内 | I11: 500 | J11: 控制在预算范围内 | K11: 未达指标酌情扣分 | L11: 万元 | M11: 定量
F12: 满意度指标 | G12: 服务对象满意度指标 | H12: 受益对象满意度 | I12: ≥95% | J12: 绝大部分人满意 | K12: 未达指标酌情扣分 | L12: 无 | M12: 定量
F13: 效益指标 | G13: 可持续影响指标 | H13: 教学工作正常开展 | I13: 保持稳定 | J13: 教育教学工作正常开展 | K13: 未达指标酌情扣分 | L13: 无 | M13: 定性
G14: 生态效益指标 | H14: 不适用 | I14: 不适用 | J14: 不适用 | K14: 未达指标酌情扣分 | L14: 无 | M14: 定性
G15: 经济效益指标 | H15: 不适用 | I15: 不适用 | J15: 不适用 | K15: 未达指标酌情扣分 | L15: 无 | M15: 定性
G16: 社会效益指标 | H16: 整体教学质量 | I16: 有所提高 | J16: 提高整体教学质量 | K16: 未达指标酌情扣分 | L16: 无 | M16: 定性
F17: 产出指标 | G17: 质量指标 | H17: 教育教学正常开展 | I17: 100% | J17: 覆盖率达100% | K17: 未达指标酌情扣分 | L17: % | M17: 定量
G18: 时效指标 | H18: 资金及时拨付率 | I18: 100% | J18: 及时拨付资金 | K18: 未达指标酌情扣分 | L18: % | M18: 定量
G19: 数量指标 | H19: 资金使用率 | I19: 100% | J19: 资金使用率达100% | K19: 未达指标酌情扣分 | L19: % | M19: 定量
A20: 404001 | B20: 城乡小学教育公用经费 | D20: 698.57 | E20: 教育保障机制配套资金，保障教育事业运行 | F20: 效益指标 | G20: 社会效益指标 | H20: 整体教学质量 | I20: 有所提高 | J20: 提高整体教学质量 | K20: 未达标准酌情扣分 | L20: 无 | M20: 定性
G21: 经济效益指标 | H21: 不适用 | I21: 不适用 | J21: 不适用 | K21: 未达标准酌情扣分 | L21: 无 | M21: 定性
G22: 生态效益指标 | H22: 不适用 | I22: 不适用 | J22: 不适用 | K22: 未达标准酌情扣分 | L22: 无 | M22: 定性
G23: 可持续影响指标 | H23: 教育教学工作正常开展 | I23: 保持稳定 | J23: 教育教学工作正常开展 | K23: 未达标准酌情扣分 | L23: 无 | M23: 定性
F24: 产出指标 | G24: 时效指标 | H24: 资金拨付及时性 | I24: 100% | J24: 及时拨付资金 | K24: 未达标准酌情扣分 | L24: % | M24: 定量
G25: 质量指标 | H25: 教育教学正常开展 | I25: 100% | J25: 覆盖率达100% | K25: 未达标准酌情扣分 | L25: % | M25: 定量
G26: 数量指标 | H26: 资金使用率 | I26: 100% | J26: 资金使用率达100% | K26: 未达标准酌情扣分 | L26: % | M26: 定量
F27: 成本指标 | G27: 生态环境成本指标 | H27: 对自然生态环境造成的负面影响 | I27: 0% | J27: 无负面影响 | K27: 未达标准酌情扣分 | L27: % | M27: 定量
G28: 社会成本指标 | H28: 对社会发展可能造成的负面影响 | I28: 0% | J28: 无负面影响 | K28: 未达标准酌情扣分 | L28: % | M28: 定量
G29: 经济成本指标 | H29: 控制在预算范围内 | I29: 698.57 | J29: 控制在预算范围内 | K29: 未达标准酌情扣分 | L29: 万元 | M29: 定量
F30: 满意度指标 | G30: 服务对象满意度指标 | H30: 受益对象满意度 | I30: ≥95% | J30: 绝大部分人满意 | K30: 未达标准酌情扣分 | L30: % | M30: 定量
A31: 404001 | B31: 初中教育贫困生补助 | D31: 55.00 | E31: 补助初中教育家庭经济困难学生生活 | F31: 产出指标 | G31: 数量指标 | H31: 资金使用率 | I31: 100% | J31: 资金使用率达100% | K31: 未达标准酌情扣分 | L31: % | M31: 定量
G32: 质量指标 | H32: 补助初中教育经济困难学生 | I32: 100% | J32: 覆盖率达到100% | K32: 未达标准酌情扣分 | L32: % | M32: 定量
G33: 时效指标 | H33: 年内完成各项工作 | I33: 24/12/31 | J33: 24/12/31 | K33: 未达标准酌情扣分 | L33: 年/月/日 | M33: 定量
F34: 效益指标 | G34: 经济效益指标 | H34: 不适用 | I34: 不适用 | J34: 不适用 | K34: 未达标准酌情扣分 | L34: 无 | M34: 定性
G35: 社会效益指标 | H35: 学业完成率 | I35: 有所提高 | J35: 初中教育家庭经济困难学生完成学业 | K35: 未达标准酌情扣分 | L35: 无 | M35: 定性
G36: 可持续影响指标 | H36: 适龄青少年就读率 | I36: 有所提高 | J36: 适龄青少年就读率 | K36: 未达标准酌情扣分 | L36: 无 | M36: 定性
G37: 生态效益指标 | H37: 不适用 | I37: 不适用 | J37: 不适用 | K37: 未达标准酌情扣分 | L37: 无 | M37: 定性
F38: 成本指标 | G38: 生态环境成本指标 | H38: 对自然生态环境造成的负面影响 | I38: 0% | J38: 无负面影响 | K38: 未达标准酌情扣分 | L38: % | M38: 定量
G39: 经济成本指标 | H39: 控制在预算范围内 | I39: 55 | J39: 控制在预算范围内 | K39: 未达标准酌情扣分 | L39: 万元 | M39: 定量
G40: 社会成本指标 | H40: 对社会发展可能造成的负面影响 | I40: 0% | J40: 无负面影响 | K40: 未达标准酌情扣分 | L40: % | M40: 定量
F41: 满意度指标 | G41: 服务对象满意度指标 | H41: 受益对象满意度 | I41: ≥95% | J41: 绝大部分人满意 | K41: 未达标准酌情扣分 | L41: % | M41: 定量
A42: 404001 | B42: 代课教师工资 | D42: 540.00 | E42: 发放代课教师，保障学校教育教学工作顺利进行 | F42: 效益指标 | G42: 社会效益指标 | H42: 教育教学工作完成 | I42: 保持稳定 | J42: 教育教学工作保质保量完成 | K42: 未达指标酌情扣分 | L42: 无 | M42: 定性
G43: 生态效益指标 | H43: 不适用 | I43: 不适用 | J43: 不适用 | K43: 未达指标酌情扣分 | L43: 无 | M43: 定性
G44: 可持续影响指标 | H44: 学校教育稳定性 | I44: 100% | J44: 学校教育稳定性 | K44: 未达指标酌情扣分 | L44: % | M44: 定量
G45: 经济效益指标 | H45: 不适用 | I45: 不适用 | J45: 不适用 | K45: 未达指标酌情扣分 | L45: 无 | M45: 定性
F46: 满意度指标 | G46: 服务对象满意度指标 | H46: 受益对象满意度 | I46: ≥95% | J46: 受益对象满意度 | K46: 未达指标酌情扣分 | L46: % | M46: 定量
F47: 成本指标 | G47: 经济成本指标 | H47: 控制在预算范围内 | I47: 540 | J47: 控制在预算范围内 | K47: 未达指标酌情扣分 | L47: 万元 | M47: 定量
G48: 生态环境成本指标 | H48: 对自然生态环境造成的负面影响 | I48: 0% | J48: 无负面影响 | K48: 未达指标酌情扣分 | L48: % | M48: 定量
G49: 社会成本指标 | H49: 对社会发展可能造成的负面影响 | I49: 0% | J49: 无负面影响 | K49: 未达指标酌情扣分 | L49: % | M49: 定量
F50: 产出指标 | G50: 数量指标 | H50: 资金使用率 | I50: 100% | J50: 资金使用率达100% | K50: 未达指标酌情扣分 | L50: % | M50: 定量
G51: 质量指标 | H51: 教育教学正常开展 | I51: 100% | J51: 覆盖率达100% | K51: 未达指标酌情扣分 | L51: % | M51: 定量
G52: 时效指标 | H52: 年内完成各项工作 | I52: 24/12/31 | J52: 24/12/31 | K52: 未达指标酌情扣分 | L52: 年/月/日 | M52: 定性
A53: 404001 | B53: 高中贫困生补助 | D53: 130.00 | E53: 补助普通高中家庭经济困难学生 | F53: 产出指标 | G53: 数量指标 | H53: 资金使用率 | I53: 100% | J53: 资金使用率达100% | K53: 未达指标的酌情扣分 | L53: % | M53: 定量
G54: 质量指标 | H54: 补助高中贫困生 | I54: 100% | J54: 覆盖率达100% | K54: 未达指标的酌情扣分 | L54: % | M54: 定量
G55: 时效指标 | H55: 年内完成各项工作 | I55: 24/12/31 | J55: 24/12/31 | K55: 未达指标的酌情扣分 | L55: 年/月/日 | M55: 定量
F56: 效益指标 | G56: 经济效益指标 | H56: 不适用 | I56: 不适用 | J56: 不适用 | K56: 未达指标的酌情扣分 | L56: 无 | M56: 定性
G57: 社会效益指标 | H57: 高中家庭经济困难学生学业完成率 | I57: 有所提高 | J57: 保障高中家庭经济困难学生学业完成率 | K57: 未达指标的酌情扣分 | L57: 无 | M57: 定性
G58: 可持续影响指标 | H58: 高中就读率 | I58: 有所提高 | J58: 家庭经济困难学生顺利完成学业 | K58: 未达指标的酌情扣分 | L58: 无 | M58: 定性
G59: 生态效益指标 | H59: 不适用 | I59: 不适用 | J59: 不适用 | K59: 未达指标的酌情扣分 | L59: 无 | M59: 定性
F60: 成本指标 | G60: 经济成本指标 | H60: 控制在预算范围内 | I60: 130 | J60: 控制在预算范围内 | K60: 未达指标的酌情扣分 | L60: 万元 | M60: 定量
G61: 社会成本指标 | H61: 对社会发展可能造成的负面影响 | I61: 0% | J61: 无负面影响 | K61: 未达指标的酌情扣分 | L61: % | M61: 定量
G62: 生态环境成本指标 | H62: 对自然生态环境造成的负面影响 | I62: 0% | J62: 无负面影响 | K62: 未达指标的酌情扣分 | L62: % | M62: 定量
F63: 满意度指标 | G63: 服务对象满意度指标 | H63: 受益对象满意度 | I63: ≥95% | J63: 绝大部分人满意 | K63: 未达指标的酌情扣分 | L63: 无 | M63: 定性
A64: 404001 | B64: 高中生均公用经费 | D64: 274.00 | E64: 高中教育保障机制配套资金，保障高中教育事业正常运行 | F64: 成本指标 | G64: 社会成本指标 | H64: 对社会发展可能造成的负面影响 | I64: 0% | J64: 无负面影响 | K64: 未达指标酌情扣分 | L64: 无 | M64: 定性
G65: 生态环境成本指标 | H65: 对自然生态环境造成的负面影响 | I65: 0% | J65: 无负面影响 | K65: 未达指标酌情扣分 | L65: 无 | M65: 定性
G66: 经济成本指标 | H66: 控制在预算范围内 | I66: 274 | J66: 控制在预算范围内 | K66: 未达指标酌情扣分 | L66: 万元 | M66: 定量
F67: 满意度指标 | G67: 服务对象满意度指标 | H67: 受益对象满意度 | I67: ≥95% | J67: 绝大部分人满意 | K67: 未达指标酌情扣分 | L67: % | M67: 定量
F68: 效益指标 | G68: 可持续影响指标 | H68: 学校教育教学工作完成率 | I68: 保持稳定 | J68: 学校教育教学工作保质保量完成 | K68: 未达指标酌情扣分 | L68: 无 | M68: 定性
G69: 生态效益指标 | H69: 不适用 | I69: 不适用 | J69: 不适用 | K69: 未达指标酌情扣分 | L69: 无 | M69: 定性
G70: 社会效益指标 | H70: 提高整体教学质量 | I70: 有所提高 | J70: 提高整体教学质量 | K70: 未达指标酌情扣分 | L70: 无 | M70: 定性
G71: 经济效益指标 | H71: 不适用 | I71: 不适用 | J71: 不适用 | K71: 未达指标酌情扣分 | L71: 无 | M71: 定性
F72: 产出指标 | G72: 时效指标 | H72: 资金及时拨付率 | I72: 100% | J72: 资金及时拨付到高校 | K72: 未达指标酌情扣分 | L72: % | M72: 定量
G73: 质量指标 | H73: 教育教学工作完成率 | I73: 100% | J73: 教育教学工作保质保量完成 | K73: 未达指标酌情扣分 | L73: % | M73: 定量
G74: 数量指标 | H74: 资金使用率 | I74: 100% | J74: 资金使用率 | K74: 未达指标酌情扣分 | L74: % | M74: 定量
A75: 404001 | B75: 高中生军训费 | D75: 15.00 | E75: 用于高中学生军训，保障军训顺利进行 | F75: 成本指标 | G75: 生态环境成本指标 | H75: 对自然生态环境造成负面影响 | I75: 0% | J75: 无负面影响 | K75: 未达指标酌情扣分 | L75: % | M75: 定量
G76: 社会成本指标 | H76: 对社会发展可能造成的负面影响 | I76: 0% | J76: 无负面影响 | K76: 未达指标酌情扣分 | L76: % | M76: 定量
G77: 经济成本指标 | H77: 控制在预算范围内 | I77: 15 | J77: 控制在预算范围内 | K77: 未达指标酌情扣分 | L77: 万元 | M77: 定量
F78: 满意度指标 | G78: 服务对象满意度指标 | H78: 受益对象满意度 | I78: ≥95% | J78: 绝大部分人满意 | K78: 未达指标酌情扣分 | L78: % | M78: 定量
F79: 效益指标 | G79: 可持续影响指标 | H79: 保障军训水平 | I79: 保持稳定 | J79: 让学生得到锻炼 | K79: 未达指标酌情扣分 | L79: 无 | M79: 定性
G80: 社会效益指标 | H80: 保障军训效果 | I80: 有所提高 | J80: 军训保质保量完成 | K80: 未达指标酌情扣分 | L80: 无 | M80: 定性
G81: 经济效益指标 | H81: 不适用 | I81: 不适用 | J81: 不适用 | K81: 未达指标酌情扣分 | L81: 无 | M81: 定性
G82: 生态效益指标 | H82: 不适用 | I82: 不适用 | J82: 不适用 | K82: 未达指标酌情扣分 | L82: 无 | M82: 定性
F83: 产出指标 | G83: 数量指标 | H83: 资金使用率 | I83: 100% | J83: 资金使用率达100% | K83: 未达指标酌情扣分 | L83: % | M83: 定量
G84: 时效指标 | H84: 资金及时拨付 | I84: 100% | J84: 及时拨付资金 | K84: 未达指标酌情扣分 | L84: % | M84: 定量
G85: 质量指标 | H85: 保障军训顺利进行 | I85: 100% | J85: 覆盖率达100% | K85: 未达指标酌情扣分 | L85: % | M85: 定量
A86: 404001 | B86: 教师体检费 | D86: 80.00 | E86: 用于教师体检，保证教师学生安全，消除疾病隐患 | F86: 效益指标 | G86: 社会效益指标 | H86: 保障师生健康安全 | I86: 有所提高 | J86: 保障师生健康安全 | K86: 未达指标酌情扣分 | L86: 无 | M86: 定性
G87: 经济效益指标 | H87: 不适用 | I87: 不适用 | J87: 不适用 | K87: 未达指标酌情扣分 | L87: 无 | M87: 定性
G88: 生态效益指标 | H88: 不适用 | I88: 不适用 | J88: 不适用 | K88: 未达指标酌情扣分 | L88: 无 | M88: 定性
G89: 可持续影响指标 | H89: 学校教学常规 | I89: 正常 | J89: 保障学校正常教学活动 | K89: 未达指标酌情扣分 | L89: 无 | M89: 定性
F90: 产出指标 | G90: 时效指标 | H90: 年内完成各项工作 | I90: 24/12/31 | J90: 24/12/31 | K90: 未达指标酌情扣分 | L90: 年/月/日 | M90: 定性
G91: 质量指标 | H91: 消除教师疾病隐患 | I91: 100% | J91: 覆盖率达到100% | K91: 未达指标酌情扣分 | L91: % | M91: 定量
G92: 数量指标 | H92: 资金使用率 | I92: 100% | J92: 资金使用率达到100% | K92: 未达指标酌情扣分 | L92: % | M92: 定量
F93: 成本指标 | G93: 社会成本指标 | H93: 对社会发展可能造成的负面影响 | I93: 0% | J93: 无影响负面 | K93: 未达指标酌情扣分 | L93: % | M93: 定量
G94: 经济成本指标 | H94: 控制在预算范围内 | I94: 80 | J94: 控制在预算范围内 | K94: 未达指标酌情扣分 | L94: 万元 | M94: 定量
G95: 生态环境成本指标 | H95: 对自然生态环境造成的负面影响 | I95: 0% | J95: 无影响负面 | K95: 未达指标酌情扣分 | L95: % | M95: 定量
F96: 满意度指标 | G96: 服务对象满意度指标 | H96: 受益对象满意度 | I96: ≥95% | J96: 绝大所属人满意 | K96: 未达指标酌情扣分 | L96: % | M96: 定量
A97: 404001 | B97: 教育信息化建设 | D97: 168.00 | E97: 改善办学条件，建设学校信息化，为教育教学提供更优秀的资源 | F97: 成本指标 | G97: 生态环境成本指标 | H97: 对自然生态环境造成的负面影响 | I97: 0% | J97: 无负面影响 | K97: 未达指标酌情扣分 | L97: % | M97: 定量
G98: 社会成本指标 | H98: 对社会发展可能造成的负面影响 | I98: 0% | J98: 无负面影响 | K98: 未达指标酌情扣分 | L98: % | M98: 定量
G99: 经济成本指标 | H99: 控制在预算范围内 | I99: 168 | J99: 控制在预算范围内 | K99: 未达指标酌情扣分 | L99: 万元 | M99: 定量
F100: 满意度指标 | G100: 服务对象满意度指标 | H100: 受益对象满意度 | I100: ≥95% | J100: 绝大部分人满意 | K100: 未达指标酌情扣分 | L100: % | M100: 定量
F101: 效益指标 | G101: 可持续影响指标 | H101: 教育教学质量 | I101: 有所提高 | J101: 信息化教育教学质量 | K101: 未达指标酌情扣分 | L101: 无 | M101: 定性
G102: 生态效益指标 | H102: 不适用 | I102: 不适用 | J102: 不适用 | K102: 未达指标酌情扣分 | L102: 无 | M102: 定性
G103: 社会效益指标 | H103: 整体信息化质量 | I103: 有所提高 | J103: 信息化质量 | K103: 未达指标酌情扣分 | L103: 无 | M103: 定性
G104: 经济效益指标 | H104: 不适用 | I104: 不适用 | J104: 不适用 | K104: 未达指标酌情扣分 | L104: 无 | M104: 定性
F105: 产出指标 | G105: 时效指标 | H105: 资金及时拨付率 | I105: 100% | J105: 资金及时拨付到学校 | K105: 未达指标酌情扣分 | L105: % | M105: 定量
G106: 数量指标 | H106: 资金使用率 | I106: 100% | J106: 资金使用率达到100% | K106: 未达指标酌情扣分 | L106: % | M106: 定量
G107: 质量指标 | H107: 验收合格率 | I107: 100% | J107: 信息化建设验收合格率 | K107: 未达指标酌情扣分 | L107: % | M107: 定量
A108: 404001 | B108: 农村学校改善办学条件 | D108: 197.00 | E108: 对我市农村义务教育学校进行维修改造，改善农村学校办学条件 | F108: 产出指标 | G108: 数量指标 | H108: 资金使用率 | I108: 100% | J108: 资金使用率达100% | K108: 未达指标酌情扣分 | L108: % | M108: 定量
G109: 质量指标 | H109: 验收合格率 | I109: 100% | J109: 改造等验收合格率达100% | K109: 未达指标酌情扣分 | L109: % | M109: 定量
G110: 时效指标 | H110: 资金拨付及时率 | I110: 100% | J110: 资金及时拨付 | K110: 未达指标酌情扣分 | L110: % | M110: 定量
F111: 效益指标 | G111: 经济效益指标 | H111: 不适用 | I111: 不适用 | J111: 不适用 | K111: 未达指标酌情扣分 | L111: 无 | M111: 定性
G112: 社会效益指标 | H112: 改善农村学校办学条件 | I112: 有所提高 | J112: 改善农村学校办学条件 | K112: 未达指标酌情扣分 | L112: 无 | M112: 定性
G113: 可持续影响指标 | H113: 农村学校教学工作 | I113: 有所提高 | J113: 农村学校教学工作保质保量完成 | K113: 未达指标酌情扣分 | L113: 无 | M113: 定性
G114: 生态效益指标 | H114: 不适用 | I114: 不适用 | J114: 不适用 | K114: 未达指标酌情扣分 | L114: 无 | M114: 定性
F115: 成本指标 | G115: 生态环境成本指标 | H115: 对自然生态环境造成的负面影响 | I115: 0% | J115: 无负面影响 | K115: 未达指标酌情扣分 | L115: % | M115: 定量
G116: 经济成本指标 | H116: 控制在预算范围内 | I116: 197 | J116: 控制在预算范围内 | K116: 未达指标酌情扣分 | L116: 无 | M116: 定性
G117: 社会成本指标 | H117: 对社会发展可能造成的负面影响 | I117: 0% | J117: 无负面影响 | K117: 未达指标酌情扣分 | L117: % | M117: 定量
F118: 满意度指标 | G118: 服务对象满意度指标 | H118: 受益对象满意度 | I118: ≥95% | J118: 绝大部分人满意 | K118: 未达指标酌情扣分 | L118: 无 | M118: 定性
A119: 404001 | B119: 危改经费 | D119: 120.00 | E119: 对学校危房进行改造，消除危房安全隐患，保障师生安全 | F119: 产出指标 | G119: 数量指标 | H119: 资金使用率 | I119: 100% | J119: 资金使用率达100% | K119: 未达标准酌情扣分 | L119: % | M119: 定量
G120: 质量指标 | H120: 验收合格率 | I120: 100% | J120: 完工后验收合格率 | K120: 未达标准酌情扣分 | L120: % | M120: 定量
G121: 时效指标 | H121: 年内完成各项工作 | I121: 24/12/31 | J121: 24/12/31 | K121: 未达标准酌情扣分 | L121: 年/月/日 | M121: 定性
F122: 效益指标 | G122: 经济效益指标 | H122: 不适用 | I122: 不适用 | J122: 不适用 | K122: 未达标准酌情扣分 | L122: 无 | M122: 定性
G123: 社会效益指标 | H123: 师生人身安全指数 | I123: 有所提高 | J123: 保障师生人身安全 | K123: 未达标准酌情扣分 | L123: 无 | M123: 定性
G124: 生态效益指标 | H124: 不适用 | I124: 不适用 | J124: 不适用 | K124: 未达标准酌情扣分 | L124: 无 | M124: 定性
G125: 可持续影响指标 | H125: 学校教学工作正常进行 | I125: 保持稳定 | J125: 学校教学工作正常进行 | K125: 未达标准酌情扣分 | L125: 无 | M125: 定性
F126: 满意度指标 | G126: 服务对象满意度指标 | H126: 受益对象满意度 | I126: ≥95% | J126: 绝大部分人满意 | K126: 未达标准酌情扣分 | L126: % | M126: 定量
F127: 成本指标 | G127: 经济成本指标 | H127: 控制在预算范围内 | I127: 120 | J127: 控制在预算范围内 | K127: 未达标准酌情扣分 | L127: 万元 | M127: 定量
G128: 社会成本指标 | H128: 对社会发展可能造成的负面影响 | I128: 0% | J128: 无负面影响 | K128: 未达标准酌情扣分 | L128: 无 | M128: 定性
G129: 生态环境成本指标 | H129: 对自然生态环境造成的负面影响 | I129: 0% | J129: 无负面影响 | K129: 未达标准酌情扣分 | L129: 无 | M129: 定性
A130: 404001 | B130: 乡村中小学教师人才津贴 | D130: 96.00 | E130: 保障乡村中小学教师待遇 | F130: 产出指标 | G130: 数量指标 | H130: 资金使用率 | I130: 100% | J130: 资金使用率达100% | K130: 未达标准酌情扣分 | L130: % | M130: 定量
G131: 质量指标 | H131: 保障乡村中小学教师待遇 | I131: 100% | J131: 覆盖率达到100% | K131: 未达标准酌情扣分 | L131: % | M131: 定量
G132: 时效指标 | H132: 资金拨付及时性 | I132: 100% | J132: 及时拨付资金 | K132: 未达标准酌情扣分 | L132: % | M132: 定量
F133: 效益指标 | G133: 经济效益指标 | H133: 不适用 | I133: 不适用 | J133: 不适用 | K133: 未达标准酌情扣分 | L133: 无 | M133: 定性
G134: 社会效益指标 | H134: 保障乡村中小学教师待遇 | I134: 有所提高 | J134: 保障乡村中小学教师待遇 | K134: 未达标准酌情扣分 | L134: 无 | M134: 定性
G135: 可持续影响指标 | H135: 乡村学校正常教学工作开展 | I135: 有所提高 | J135: 乡村学校正常教学工作保质保量完成 | K135: 未达标准酌情扣分 | L135: 无 | M135: 定性
G136: 生态效益指标 | H136: 不适用 | I136: 不适用 | J136: 不适用 | K136: 未达标准酌情扣分 | L136: 无 | M136: 定性
F137: 成本指标 | G137: 生态环境成本指标 | H137: 对自然生态环境造成的负面影响 | I137: 0% | J137: 无负面影响 | K137: 未达标准酌情扣分 | L137: % | M137: 定量
G138: 经济成本指标 | H138: 控制在预算范围内 | I138: 96 | J138: 控制在预算范围内 | K138: 未达标准酌情扣分 | L138: 万元 | M138: 定量
G139: 社会成本指标 | H139: 对社会发展可能造成的负面影响 | I139: 0% | J139: 无负面影响 | K139: 未达标准酌情扣分 | L139: % | M139: 定量
F140: 满意度指标 | G140: 服务对象满意度指标 | H140: 受益对象满意度 | I140: ≥95% | J140: 受益对象满意度 | K140: 未达标准酌情扣分 | L140: % | M140: 定量
A141: 404001 | B141: 小学教育贫困生补助 | D141: 83.00 | E141: 补助小学教育贫困生 | F141: 产出指标 | G141: 数量指标 | H141: 资金使用率 | I141: 100% | J141: 资金使用率达100% | K141: 未达标准酌情扣分 | L141: % | M141: 定量
G142: 质量指标 | H142: 补助小学教育经济困难学生 | I142: 100% | J142: 覆盖率达到100% | K142: 未达标准酌情扣分 | L142: % | M142: 定量
G143: 时效指标 | H143: 年内完成各项工作 | I143: 24/12/31 | J143: 24/12/31 | K143: 未达标准酌情扣分 | L143: 年/月/日 | M143: 定量
F144: 效益指标 | G144: 经济效益指标 | H144: 不适用 | I144: 不适用 | J144: 不适用 | K144: 未达标准酌情扣分 | L144: 无 | M144: 定性
G145: 社会效益指标 | H145: 学业完成率 | I145: 有所提高 | J145: 保障小学教育完成 | K145: 未达标准酌情扣分 | L145: 无 | M145: 定性
G146: 可持续影响指标 | H146: 适龄儿童义务教育就读率 | I146: 保持增长 | J146: 适龄儿童义务教育就读率 | K146: 未达标准酌情扣分 | L146: 无 | M146: 定性
G147: 生态效益指标 | H147: 不适用 | I147: 不适用 | J147: 不适用 | K147: 未达标准酌情扣分 | L147: 无 | M147: 定性
F148: 成本指标 | G148: 生态环境成本指标 | H148: 对自然生态环境造成的负面影响 | I148: 0% | J148: 无负面影响 | K148: 未达标准酌情扣分 | L148: % | M148: 定量
G149: 经济成本指标 | H149: 控制在预算范围内 | I149: 83 | J149: 控制在预算范围内 | K149: 未达标准酌情扣分 | L149: 万元 | M149: 定量
G150: 社会成本指标 | H150: 对社会发展可能造成的负面影响 | I150: 0% | J150: 无负面影响 | K150: 未达标准酌情扣分 | L150: % | M150: 定量
F151: 满意度指标 | G151: 服务对象满意度指标 | H151: 受益对象满意度 | I151: ≥95% | J151: 绝大部分人满意 | K151: 未达标准酌情扣分 | L151: % | M151: 定量
A152: 404001 | B152: 校车营运以奖代补 | D152: 160.00 | E152: 用于我市校车正常运营和校车监控系统的维护，以服务学生，普惠学生，保障学生交通安全 | F152: 成本指标 | G152: 社会成本指标 | H152: 对社会发展可能造成的负面影响 | I152: 0% | J152: 无负面影响 | K152: 未达指标酌情扣分 | L152: % | M152: 定量
G153: 生态环境成本指标 | H153: 对自然生态环境造成的负面影响 | I153: 0% | J153: 无负面影响 | K153: 未达指标酌情扣分 | L153: % | M153: 定量
G154: 经济成本指标 | H154: 控制在预算范围内 | I154: 160 | J154: 控制在预算范围内 | K154: 未达指标酌情扣分 | L154: 万元 | M154: 定量
F155: 满意度指标 | G155: 服务对象满意度指标 | H155: 受益对象满意度 | I155: ≥95% | J155: 绝大部分人满意 | K155: 未达指标酌情扣分 | L155: % | M155: 定量
F156: 效益指标 | G156: 可持续影响指标 | H156: 学校教学正常运行 | I156: 保持稳定 | J156: 学校教学正常运行 | K156: 未达指标酌情扣分 | L156: 无 | M156: 定性
G157: 生态效益指标 | H157: 不适用 | I157: 不适用 | J157: 不适用 | K157: 未达指标酌情扣分 | L157: 无 | M157: 定性
G158: 社会效益指标 | H158: 保障学校校车安全 | I158: 有所提高 | J158: 保障学校校车安全 | K158: 未达指标酌情扣分 | L158: 无 | M158: 定性
G159: 经济效益指标 | H159: 不适用 | I159: 不适用 | J159: 不适用 | K159: 未达指标酌情扣分 | L159: 无 | M159: 定性
F160: 产出指标 | G160: 时效指标 | H160: 资金及时拨付率 | I160: 100% | J160: 资金及时拨付率达100% | K160: 未达指标酌情扣分 | L160: % | M160: 定量
G161: 质量指标 | H161: 校车配置验收合格率 | I161: 100% | J161: 保障校车安全，学生安全 | K161: 未达指标酌情扣分 | L161: % | M161: 定量
G162: 数量指标 | H162: 资金使用率 | I162: 100% | J162: 资金使用率达到100% | K162: 未达指标酌情扣分 | L162: % | M162: 定量
A163: 404001 | B163: 校舍维修改造 | D163: 169.00 | E163: 我市义务教育学校校舍进行维修改造，消除校舍安全隐患 | F163: 效益指标 | G163: 社会效益指标 | H163: 学校校舍安全指数 | I163: 有所提高 | J163: 保障学校师生安全 | K163: 未达指标酌情扣分 | L163: 无 | M163: 定性
G164: 经济效益指标 | H164: 不适用 | I164: 不适用 | J164: 不适用 | K164: 未达指标酌情扣分 | L164: 无 | M164: 定性
G165: 生态效益指标 | H165: 不适用 | I165: 不适用 | J165: 不适用 | K165: 未达指标酌情扣分 | L165: 无 | M165: 定性
G166: 可持续影响指标 | H166: 师生校舍住宿安全指数 | I166: 有所提高 | J166: 保障学校正常运转 | K166: 未达指标酌情扣分 | L166: 无 | M166: 定性
F167: 产出指标 | G167: 时效指标 | H167: 年内完成各项工作 | I167: 24/12/31 | J167: 24/12/31 | K167: 未达指标酌情扣分 | L167: 年/月/日 | M167: 定性
G168: 质量指标 | H168: 消除校舍安全隐患 | I168: 100% | J168: 覆盖率达到100% | K168: 未达指标酌情扣分 | L168: % | M168: 定量
G169: 数量指标 | H169: 资金使用率 | I169: 100% | J169: 资金使用率达100% | K169: 未达指标酌情扣分 | L169: % | M169: 定量
F170: 成本指标 | G170: 社会成本指标 | H170: 对社会发展可能造成的负面影响 | I170: 无 | J170: 无负面影响 | K170: 未达指标酌情扣分 | L170: 无 | M170: 定性
G171: 经济成本指标 | H171: 控制在预算范围内 | I171: 169 | J171: 控制在预算范围内 | K171: 未达指标酌情扣分 | L171: 万元 | M171: 定量
G172: 生态环境成本指标 | H172: 对自然生态环境可能造成的负面影响 | I172: 无 | J172: 无负面影响 | K172: 未达指标酌情扣分 | L172: 无 | M172: 定性
F173: 满意度指标 | G173: 服务对象满意度指标 | H173: 受益对象满意度 | I173: ≥95% | J173: 绝大部分人满意 | K173: 未达指标酌情扣分 | L173: % | M173: ≥
A174: 404001 | B174: 学前教育生均公用经费 | D174: 251.00 | E174: 学前教育保障机制配套资金，保障学前教育正常教学工作开展 | F174: 产出指标 | G174: 数量指标 | H174: 资金使用率 | I174: 100% | J174: 资金使用率达100% | K174: 未达指标酌情扣分 | L174: % | M174: 定量
G175: 质量指标 | H175: 学前教育工作正常开展 | I175: 100% | J175: 覆盖率达100% | K175: 未达指标酌情扣分 | L175: % | M175: 定量
G176: 时效指标 | H176: 年内完成各项工作 | I176: 24/12/31 | J176: 24/12/31 | K176: 未达指标酌情扣分 | L176: 年/月/日 | M176: 定量
F177: 效益指标 | G177: 经济效益指标 | H177: 不适用 | I177: 不适用 | J177: 不适用 | K177: 未达指标酌情扣分 | L177: 无 | M177: 定性
G178: 社会效益指标 | H178: 学前教育工作正常开展 | I178: 有所提高 | J178: 学前教育工作保质保量完成 | K178: 未达指标酌情扣分 | L178: 无 | M178: 定性
G179: 可持续影响指标 | H179: 幼儿园教学工作 | I179: 有所提高 | J179: 幼儿园教育工作正常完成 | K179: 未达指标酌情扣分 | L179: 无 | M179: 定性
G180: 生态效益指标 | H180: 不适用 | I180: 不适用 | J180: 不适用 | K180: 未达指标酌情扣分 | L180: 无 | M180: 定性
F181: 成本指标 | G181: 生态环境成本指标 | H181: 对自然生态环境造成的负面影响 | I181: 0% | J181: 无负面影响 | K181: 未达指标酌情扣分 | L181: % | M181: 定量
G182: 经济成本指标 | H182: 控制在预算范围内 | I182: 251 | J182: 控制在预算范围内 | K182: 未达指标酌情扣分 | L182: 万元 | M182: 定量
G183: 社会成本指标 | H183: 对社会发展可能造成的负面影响 | I183: 0% | J183: 无负面影响 | K183: 未达指标酌情扣分 | L183: % | M183: 定量
F184: 满意度指标 | G184: 服务对象满意度指标 | H184: 受益对象满意度 | I184: ≥95% | J184: 绝大部分人满意 | K184: 未达指标酌情扣分 | L184: % | M184: 定量
A185: 404001 | B185: 学前贫困补助 | D185: 26.00 | E185: 资助学前教育家庭贫困儿童 | F185: 产出指标 | G185: 质量指标 | H185: 补助学前教育家庭贫困儿童 | I185: 100% | J185: 覆盖率达到100% | K185: 未达指标的酌情扣分 | L185: % | M185: 定量
G186: 数量指标 | H186: 资金使用率 | I186: 100% | J186: 资金使用率达到100% | K186: 未达指标的酌情扣分 | L186: % | M186: 定量
G187: 时效指标 | H187: 年内完成各项工作 | I187: 24/12/31 | J187: 24/12/31 | K187: 未达指标的酌情扣分 | L187: 年/月/日 | M187: 定量
F188: 成本指标 | G188: 生态环境成本指标 | H188: 对自然生态环境造成的负面影响 | I188: 0% | J188: 无负面影响 | K188: 未达指标的酌情扣分 | L188: 无 | M188: 定量
G189: 社会成本指标 | H189: 对社会发展可能造成的负面影响 | I189: 0% | J189: 无负面影响 | K189: 未达指标的酌情扣分 | L189: 无 | M189: 定量
G190: 经济成本指标 | H190: 控制在预算范围内 | I190: 26 | J190: 控制在预算范围内 | K190: 未达指标的酌情扣分 | L190: 万元 | M190: 定量
F191: 满意度指标 | G191: 服务对象满意度指标 | H191: 受益对象满意度 | I191: ≥95% | J191: 绝大部分人满意 | K191: 未达指标的酌情扣分 | L191: % | M191: 定量
F192: 效益指标 | G192: 可持续影响指标 | H192: 学前儿童接受教育率 | I192: 有所提高 | J192: 学前儿童接受教育率 | K192: 未达指标的酌情扣分 | L192: 无 | M192: 定性
G193: 生态效益指标 | H193: 不适用 | I193: 不适用 | J193: 不适用 | K193: 未达指标的酌情扣分 | L193: 无 | M193: 定性
G194: 社会效益指标 | H194: 保障学前贫困儿童基本生活 | I194: 有所提高 | J194: 保障学前贫困儿童基本生活 | K194: 未达指标的酌情扣分 | L194: 无 | M194: 定性
G195: 经济效益指标 | H195: 不适用 | I195: 不适用 | J195: 不适用 | K195: 未达指标的酌情扣分 | L195: 无 | M195: 定性
A196: 404001 | B196: 学校安保专项 | D196: 72.00 | E196: 支付学校安保人员工资、安保设施购置及建设，保障学校校园安全 | F196: 成本指标 | G196: 社会成本指标 | H196: 对社会发展可能造成的负面影响 | I196: 0% | J196: 无负面影响 | K196: 未达指标酌情扣分 | L196: % | M196: 定量
G197: 经济成本指标 | H197: 控制在预算范围内 | I197: 72 | J197: 控制在预算范围内 | K197: 未达指标酌情扣分 | L197: 万元 | M197: 定量
G198: 生态环境成本指标 | H198: 对自然生态环境造成的负面影响 | I198: 0% | J198: 无负面影响 | K198: 未达指标酌情扣分 | L198: % | M198: 定量
F199: 满意度指标 | G199: 服务对象满意度指标 | H199: 受益对象满意度 | I199: ≥95% | J199: 绝大部分人满意 | K199: 未达指标酌情扣分 | L199: % | M199: 定量
F200: 效益指标 | G200: 可持续影响指标 | H200: 校园安全指数 | I200: 有所提高 | J200: 校园安全指数 | K200: 未达指标酌情扣分 | L200: 无 | M200: 定性
... 183 more rows
